[Event "Titled Tuesday Blitz February 15 Early 2022"]
[White "Xie, Bryan"]
[Black "Arabidze, Meri"]
[WhiteFideId "30941296"]
[BlackFideId "13604040"]
[WhiteElo "1899"]
[BlackElo "2329"]
[Result "0-1"]
[Round "03"]
[TimeControl "180+1"]
[Date "2022.02.15"]
[WhiteClock "0:00:04"]
[BlackClock "0:01:20"]

1. d4 {[%clk 0:02:53]}  Nf6 {[%clk 0:02:59]} 2. Nf3 {[%clk 0:02:51]}  e6 {[%clk 0:02:59]} 3. Bf4 {[%clk 0:02:49]}  d5 {[%clk 0:03:00]} 4. e3 {[%clk 0:02:49]}  Bd6 {[%clk 0:03:00]} 5. Bg3 {[%clk 0:02:50]}  c5 {[%clk 0:03:01]} 6. Nbd2 {[%clk 0:02:46]}  Nc6 {[%clk 0:03:01]} 7. c3 {[%clk 0:02:47]}  O-O {[%clk 0:03:01]} 8. Bd3 {[%clk 0:02:45]}  b6 {[%clk 0:03:01]} 9. Qe2 {[%clk 0:02:41]}  Bb7 {[%clk 0:03:02]} 10. Ne5 {[%clk 0:02:38]}  Qc7 {[%clk 0:03:00]} 11. Ndf3 {[%clk 0:02:18]}  Ne4 {[%clk 0:02:57]} 12. Nxc6 {[%clk 0:02:06]}  Bxc6 {[%clk 0:02:58]} 13. Ne5 {[%clk 0:02:04]}  f6 {[%clk 0:02:29]} 14. Nxc6 {[%clk 0:01:55]}  Qxc6 {[%clk 0:02:30]} 15. Bxe4 {[%clk 0:01:30]}  dxe4 {[%clk 0:02:31]} 16. Qc4 {[%clk 0:01:29]}  Bxg3 {[%clk 0:02:05]} 17. hxg3 {[%clk 0:01:30]}  f5 {[%clk 0:02:02]} 18. O-O-O {[%clk 0:01:23]}  Rfd8 {[%clk 0:01:56]} 19. Rh5 {[%clk 0:00:29]}  Rd5 {[%clk 0:01:53]} 20. Rdh1 {[%clk 0:00:13]}  h6 {[%clk 0:01:51]} 21. g4 {[%clk 0:00:14]}  b5 {[%clk 0:01:47]} 22. Qe2 {[%clk 0:00:12]}  cxd4 {[%clk 0:01:45]} 23. exd4 {[%clk 0:00:11]}  b4 {[%clk 0:01:46]} 24. gxf5 {[%clk 0:00:07]}  bxc3 {[%clk 0:01:42]} 25. fxe6 {[%clk 0:00:04]}  cxb2+ {[%clk 0:01:42]} 26. Kb1 {[%clk 0:00:04]}  Rc8 {[%clk 0:01:20]} 0-1


[Site "https://www.chess.com"]

[Event "Titled Tuesday Blitz February 15 Early 2022"]
[White "Xiong, Jeffery"]
[Black "Srihari L R"]
[WhiteFideId "2047640"]
[BlackFideId "46617116"]
[WhiteElo "2727"]
[BlackElo "2121"]
[Result "1-0"]
[Round "03"]
[TimeControl "180+1"]
[Date "2022.02.15"]
[WhiteClock "0:00:29"]
[BlackClock "0:00:01"]

1. e4 {[%clk 0:03:00]}  c6 {[%clk 0:02:59]} 2. d4 {[%clk 0:02:55]}  d5 {[%clk 0:02:59]} 3. e5 {[%clk 0:02:56]}  Bf5 {[%clk 0:02:59]} 4. Nd2 {[%clk 0:02:56]}  e6 {[%clk 0:02:59]} 5. Nb3 {[%clk 0:02:57]}  Nd7 {[%clk 0:02:58]} 6. Be3 {[%clk 0:02:49]}  Ne7 {[%clk 0:02:56]} 7. Be2 {[%clk 0:02:45]}  Bg6 {[%clk 0:02:52]} 8. Nf3 {[%clk 0:02:45]}  Nf5 {[%clk 0:02:51]} 9. Bd2 {[%clk 0:02:46]}  Be7 {[%clk 0:02:48]} 10. g3 {[%clk 0:02:45]}  h5 {[%clk 0:02:47]} 11. c3 {[%clk 0:02:10]}  Qb6 {[%clk 0:02:35]} 12. a4 {[%clk 0:02:08]}  c5 {[%clk 0:02:29]} 13. a5 {[%clk 0:01:56]}  Qc7 {[%clk 0:02:28]} 14. a6 {[%clk 0:01:39]}  b6 {[%clk 0:02:27]} 15. Bb5 {[%clk 0:01:38]}  O-O {[%clk 0:02:19]} 16. h3 {[%clk 0:01:38]}  c4 {[%clk 0:00:27]} 17. Nc1 {[%clk 0:01:38]}  f6 {[%clk 0:00:24]} 18. Ne2 {[%clk 0:01:31]}  fxe5 {[%clk 0:00:23]} 19. Bxd7 {[%clk 0:01:31]}  Qxd7 {[%clk 0:00:19]} 20. Nxe5 {[%clk 0:01:32]}  Qe8 {[%clk 0:00:20]} 21. Nf4 {[%clk 0:01:25]}  Bf7 {[%clk 0:00:20]} 22. Nxf7 {[%clk 0:01:25]}  Qxf7 {[%clk 0:00:20]} 23. Qxh5 {[%clk 0:01:25]}  Qf6 {[%clk 0:00:20]} 24. Ng6 {[%clk 0:01:14]}  Rfe8 {[%clk 0:00:12]} 25. h4 {[%clk 0:01:01]}  Bd6 {[%clk 0:00:03]} 26. Bg5 {[%clk 0:01:00]}  Nxg3 {[%clk 0:00:02]} 27. fxg3 {[%clk 0:00:59]}  Bxg3+ {[%clk 0:00:03]} 28. Kd1 {[%clk 0:01:00]}  Qf5 {[%clk 0:00:03]} 29. Rg1 {[%clk 0:00:28]}  Qd3+ {[%clk 0:00:01]} 30. Bd2 {[%clk 0:00:29]} 1-0


[Site "https://www.chess.com"]

[Event "Titled Tuesday Blitz February 15 Early 2022"]
[White "Yang, Kaiqi"]
[Black "Kollars, Dmitrij"]
[WhiteFideId "8604398"]
[BlackFideId "12909572"]
[WhiteElo "2373"]
[BlackElo "2584"]
[Result "1-0"]
[Round "03"]
[TimeControl "180+1"]
[Date "2022.02.15"]
[WhiteClock "0:00:12"]
[BlackClock "0:00:19"]

1. c4 {[%clk 0:03:00]}  Nf6 {[%clk 0:02:58]} 2. Nc3 {[%clk 0:02:59]}  e5 {[%clk 0:02:58]} 3. Nf3 {[%clk 0:02:57]}  Nc6 {[%clk 0:02:58]} 4. e4 {[%clk 0:02:57]}  Bb4 {[%clk 0:02:57]} 5. d3 {[%clk 0:02:57]}  O-O {[%clk 0:02:57]} 6. a3 {[%clk 0:02:56]}  Bxc3+ {[%clk 0:02:56]} 7. bxc3 {[%clk 0:02:56]}  d6 {[%clk 0:02:57]} 8. Be2 {[%clk 0:02:42]}  h6 {[%clk 0:02:57]} 9. O-O {[%clk 0:02:42]}  Nh7 {[%clk 0:02:57]} 10. Ne1 {[%clk 0:02:37]}  f5 {[%clk 0:02:57]} 11. exf5 {[%clk 0:02:37]}  Bxf5 {[%clk 0:02:58]} 12. Rb1 {[%clk 0:02:10]}  Rb8 {[%clk 0:02:46]} 13. Bf3 {[%clk 0:02:11]}  Qd7 {[%clk 0:02:46]} 14. Bd5+ {[%clk 0:02:00]}  Kh8 {[%clk 0:02:45]} 15. f4 {[%clk 0:01:59]}  Nf6 {[%clk 0:02:35]} 16. fxe5 {[%clk 0:01:53]}  Nxd5 {[%clk 0:02:29]} 17. cxd5 {[%clk 0:01:53]}  Nxe5 {[%clk 0:02:30]} 18. Bf4 {[%clk 0:01:48]}  Qe7 {[%clk 0:02:16]} 19. Rb2 {[%clk 0:01:38]}  Ng6 {[%clk 0:02:04]} 20. Rbf2 {[%clk 0:01:29]}  Bd7 {[%clk 0:01:21]} 21. Bd2 {[%clk 0:01:28]}  Rxf2 {[%clk 0:01:20]} 22. Rxf2 {[%clk 0:01:29]}  Re8 {[%clk 0:01:16]} 23. c4 {[%clk 0:01:21]}  Kh7 {[%clk 0:01:06]} 24. h3 {[%clk 0:01:17]}  Qe5 {[%clk 0:00:59]} 25. Nf3 {[%clk 0:01:12]}  Qg3 {[%clk 0:00:58]} 26. Ng5+ {[%clk 0:00:50]}  Kg8 {[%clk 0:00:42]} 27. Ne4 {[%clk 0:00:50]}  Qh4 {[%clk 0:00:32]} 28. Be1 {[%clk 0:00:36]}  Qe7 {[%clk 0:00:27]} 29. Bc3 {[%clk 0:00:35]}  Ne5 {[%clk 0:00:27]} 30. Bxe5 {[%clk 0:00:22]}  Qxe5 {[%clk 0:00:28]} 31. Qf3 {[%clk 0:00:23]}  Kh7 {[%clk 0:00:22]} 32. Qf7 {[%clk 0:00:19]}  Re7 {[%clk 0:00:21]} 33. Nf6+ {[%clk 0:00:11]}  Qxf6 {[%clk 0:00:21]} 34. Rxf6 {[%clk 0:00:11]}  Rxf7 {[%clk 0:00:15]} 35. Rxf7 {[%clk 0:00:12]}  Ba4 {[%clk 0:00:16]} 36. Rxc7 {[%clk 0:00:12]}  Bd1 {[%clk 0:00:17]} 37. Rxb7 {[%clk 0:00:12]}  Bc2 {[%clk 0:00:18]} 38. Rxa7 {[%clk 0:00:12]}  Bxd3 {[%clk 0:00:19]} 39. c5 {[%clk 0:00:12]}  dxc5 {[%clk 0:00:19]} 40. d6 {[%clk 0:00:12]} 1-0


[Site "https://www.chess.com"]

[Event "Titled Tuesday Blitz February 15 Early 2022"]
[White "Zheenbekov, Nurgazy"]
[Black "Postnikov, Daniil"]
[WhiteFideId "13800485"]
[BlackFideId "4166329"]
[WhiteElo "1959"]
[BlackElo "2261"]
[Result "0-1"]
[Round "03"]
[TimeControl "180+1"]
[Date "2022.02.15"]
[WhiteClock "0:00:56"]
[BlackClock "0:00:58"]

1. e4 {[%clk 0:02:59]}  e6 {[%clk 0:02:59]} 2. d4 {[%clk 0:02:59]}  d5 {[%clk 0:03:00]} 3. Nc3 {[%clk 0:02:59]}  Nf6 {[%clk 0:03:00]} 4. Bd3 {[%clk 0:02:57]}  c5 {[%clk 0:02:57]} 5. exd5 {[%clk 0:02:57]}  Nxd5 {[%clk 0:02:56]} 6. Nf3 {[%clk 0:02:46]}  Nc6 {[%clk 0:02:51]} 7. Nxd5 {[%clk 0:02:31]}  Qxd5 {[%clk 0:02:45]} 8. dxc5 {[%clk 0:02:26]}  Bxc5 {[%clk 0:02:42]} 9. O-O {[%clk 0:02:26]}  O-O {[%clk 0:02:34]} 10. c4 {[%clk 0:02:21]}  Qh5 {[%clk 0:02:32]} 11. Ng5 {[%clk 0:01:59]}  Qxd1 {[%clk 0:02:08]} 12. Bxh7+ {[%clk 0:01:58]}  Kh8 {[%clk 0:02:08]} 13. Rxd1 {[%clk 0:01:58]}  f6 {[%clk 0:01:59]} 14. Ne4 {[%clk 0:01:57]}  Bxf2+ {[%clk 0:01:52]} 15. Kxf2 {[%clk 0:01:50]}  Kxh7 {[%clk 0:01:51]} 16. Be3 {[%clk 0:01:48]}  b6 {[%clk 0:01:36]} 17. h3 {[%clk 0:01:47]}  Ne5 {[%clk 0:01:33]} 18. b3 {[%clk 0:01:47]}  Bb7 {[%clk 0:01:33]} 19. Nd6 {[%clk 0:01:47]}  Bc6 {[%clk 0:01:32]} 20. a4 {[%clk 0:01:41]}  Rad8 {[%clk 0:01:29]} 21. a5 {[%clk 0:01:40]}  Rb8 {[%clk 0:01:15]} 22. axb6 {[%clk 0:01:39]}  axb6 {[%clk 0:01:16]} 23. Ra7 {[%clk 0:01:39]}  b5 {[%clk 0:01:08]} 24. c5 {[%clk 0:01:23]}  Bd5 {[%clk 0:01:08]} 25. Bf4 {[%clk 0:01:07]}  Bxb3 {[%clk 0:01:01]} 26. Ke3 {[%clk 0:00:56]}  Bxd1 {[%clk 0:00:58]} 0-1


[Site "https://www.chess.com"]

[Event "Titled Tuesday Blitz February 15 Early 2022"]
[White "Zhu, Jiner"]
[Black "Bluebaum, Matthias"]
[WhiteFideId "8608059"]
[BlackFideId "24651516"]
[WhiteElo "2281"]
[BlackElo "2550"]
[Result "1-0"]
[Round "03"]
[TimeControl "180+1"]
[Date "2022.02.15"]
[WhiteClock "0:00:40"]
[BlackClock "0:00:03"]

1. e4 {[%clk 0:03:00]}  e6 {[%clk 0:02:58]} 2. d4 {[%clk 0:03:00]}  d5 {[%clk 0:02:56]} 3. Nc3 {[%clk 0:03:00]}  Nf6 {[%clk 0:02:56]} 4. e5 {[%clk 0:03:00]}  Nfd7 {[%clk 0:02:56]} 5. f4 {[%clk 0:03:00]}  c5 {[%clk 0:02:57]} 6. Nf3 {[%clk 0:03:01]}  Nc6 {[%clk 0:02:58]} 7. Be3 {[%clk 0:03:01]}  a6 {[%clk 0:02:59]} 8. a3 {[%clk 0:03:01]}  cxd4 {[%clk 0:02:59]} 9. Nxd4 {[%clk 0:03:01]}  Bc5 {[%clk 0:02:59]} 10. Qd2 {[%clk 0:02:57]}  O-O {[%clk 0:02:58]} 11. Qf2 {[%clk 0:02:48]}  g5 {[%clk 0:02:55]} 12. Nxc6 {[%clk 0:02:33]}  Bxe3 {[%clk 0:02:54]} 13. Qxe3 {[%clk 0:02:34]}  gxf4 {[%clk 0:02:54]} 14. Qxf4 {[%clk 0:02:30]}  bxc6 {[%clk 0:02:53]} 15. O-O-O {[%clk 0:02:30]}  f6 {[%clk 0:02:28]} 16. exf6 {[%clk 0:01:51]}  Qxf6 {[%clk 0:02:29]} 17. Qg3+ {[%clk 0:01:49]}  Qg7 {[%clk 0:02:19]} 18. Qd6 {[%clk 0:01:43]}  Qe5 {[%clk 0:02:00]} 19. Qxc6 {[%clk 0:01:36]}  Rb8 {[%clk 0:02:00]} 20. Bd3 {[%clk 0:01:20]}  Rb6 {[%clk 0:01:58]} 21. Qa4 {[%clk 0:01:19]}  Rf4 {[%clk 0:01:52]} 22. Qa5 {[%clk 0:01:19]}  Rf2 {[%clk 0:01:23]} 23. Rhe1 {[%clk 0:01:11]}  Qf4+ {[%clk 0:01:15]} 24. Kb1 {[%clk 0:01:11]}  Qc7 {[%clk 0:01:16]} 25. Ka1 {[%clk 0:01:03]}  Qc5 {[%clk 0:01:07]} 26. Qa4 {[%clk 0:00:53]}  Nf8 {[%clk 0:00:51]} 27. Qg4+ {[%clk 0:00:51]}  Kh8 {[%clk 0:00:48]} 28. Na4 {[%clk 0:00:51]}  Qc7 {[%clk 0:00:19]} 29. Nxb6 {[%clk 0:00:51]}  Qxb6 {[%clk 0:00:20]} 30. Rf1 {[%clk 0:00:51]}  e5 {[%clk 0:00:16]} 31. Qh4 {[%clk 0:00:49]}  Rxf1 {[%clk 0:00:11]} 32. Rxf1 {[%clk 0:00:50]}  Kg8 {[%clk 0:00:12]} 33. Qg5+ {[%clk 0:00:46]}  Ng6 {[%clk 0:00:12]} 34. Bxg6 {[%clk 0:00:45]}  hxg6 {[%clk 0:00:13]} 35. Qxe5 {[%clk 0:00:44]}  Be6 {[%clk 0:00:14]} 36. Qf6 {[%clk 0:00:40]}  Qc6 {[%clk 0:00:03]} 1-0


[Site "https://www.chess.com"]

[Event "Titled Tuesday Blitz February 15 Early 2022"]
[White "parintele_chess"]
[Black "Devaev, Alexander"]
[BlackFideId "4169395"]
[WhiteElo "2199"]
[BlackElo "2185"]
[Result "0-1"]
[Round "03"]
[TimeControl "180+1"]
[Date "2022.02.15"]
[WhiteClock "0:00:42"]
[BlackClock "0:01:36"]

1. d4 {[%clk 0:02:59]}  Nf6 {[%clk 0:02:58]} 2. Bf4 {[%clk 0:03:00]}  e6 {[%clk 0:02:58]} 3. e3 {[%clk 0:02:59]}  Be7 {[%clk 0:02:57]} 4. Nf3 {[%clk 0:02:57]}  Nh5 {[%clk 0:02:58]} 5. Bg3 {[%clk 0:02:57]}  Nxg3 {[%clk 0:02:55]} 6. hxg3 {[%clk 0:02:57]}  g6 {[%clk 0:02:55]} 7. c4 {[%clk 0:02:55]}  b6 {[%clk 0:02:55]} 8. Nc3 {[%clk 0:02:54]}  Bb7 {[%clk 0:02:55]} 9. Bd3 {[%clk 0:02:54]}  c5 {[%clk 0:02:50]} 10. d5 {[%clk 0:02:53]}  exd5 {[%clk 0:02:23]} 11. cxd5 {[%clk 0:02:54]}  d6 {[%clk 0:02:23]} 12. e4 {[%clk 0:02:53]}  Bf6 {[%clk 0:02:18]} 13. Bb5+ {[%clk 0:02:37]}  Kf8 {[%clk 0:02:17]} 14. Qd2 {[%clk 0:02:33]}  a6 {[%clk 0:02:17]} 15. Be2 {[%clk 0:02:31]}  Nd7 {[%clk 0:02:16]} 16. a4 {[%clk 0:02:30]}  Qe7 {[%clk 0:02:16]} 17. Bd3 {[%clk 0:02:25]}  h5 {[%clk 0:02:15]} 18. O-O {[%clk 0:02:14]}  Kg7 {[%clk 0:02:15]} 19. Rfe1 {[%clk 0:02:13]}  Ne5 {[%clk 0:02:08]} 20. Nxe5 {[%clk 0:02:12]}  Bxe5 {[%clk 0:02:08]} 21. f4 {[%clk 0:02:13]}  Bd4+ {[%clk 0:02:08]} 22. Kf1 {[%clk 0:02:13]}  h4 {[%clk 0:02:06]} 23. g4 {[%clk 0:02:10]}  h3 {[%clk 0:02:07]} 24. gxh3 {[%clk 0:02:09]}  Rxh3 {[%clk 0:02:06]} 25. g5 {[%clk 0:02:06]}  Rah8 {[%clk 0:02:06]} 26. Qg2 {[%clk 0:01:48]}  Rh1+ {[%clk 0:01:58]} 27. Ke2 {[%clk 0:01:48]}  R1h2 {[%clk 0:01:59]} 28. Kf3 {[%clk 0:01:49]}  R8h3+ {[%clk 0:01:52]} 29. Qg3 {[%clk 0:01:45]}  Rf2+ {[%clk 0:01:38]} 30. Kg4 {[%clk 0:01:44]}  Bc8+ {[%clk 0:01:38]} 31. f5 {[%clk 0:01:42]}  Rxg3+ {[%clk 0:01:38]} 32. Kxg3 {[%clk 0:01:41]}  Qxg5+ {[%clk 0:01:38]} 33. Kh3 {[%clk 0:01:41]}  Rf3+ {[%clk 0:01:35]} 34. Kh2 {[%clk 0:01:38]}  Be5+ {[%clk 0:01:35]} 35. Kh1 {[%clk 0:00:42]}  Rh3# {[%clk 0:01:36]} 0-1


[Site "https://www.chess.com"]

[Event "Titled Tuesday Blitz February 15 Early 2022"]
[White "Abramov, Alexander"]
[Black "Gracia Alvarez, Gerardo Antonio"]
[WhiteFideId "4174089"]
[BlackFideId "5109124"]
[WhiteElo "2130"]
[BlackElo "2139"]
[Result "0-1"]
[Round "04"]
[TimeControl "180+1"]
[Date "2022.02.15"]
[WhiteClock "0:00:10"]
[BlackClock "0:01:16"]

1. e4 {[%clk 0:02:47]}  c5 {[%clk 0:02:59]} 2. Nf3 {[%clk 0:02:46]}  Nc6 {[%clk 0:02:59]} 3. d4 {[%clk 0:02:47]}  cxd4 {[%clk 0:02:59]} 4. Nxd4 {[%clk 0:02:47]}  Nf6 {[%clk 0:02:59]} 5. Nc3 {[%clk 0:02:48]}  e5 {[%clk 0:03:00]} 6. Ndb5 {[%clk 0:02:48]}  h6 {[%clk 0:03:00]} 7. Nd6+ {[%clk 0:02:40]}  Bxd6 {[%clk 0:03:01]} 8. Qxd6 {[%clk 0:02:40]}  Qe7 {[%clk 0:03:02]} 9. Qxe7+ {[%clk 0:02:14]}  Kxe7 {[%clk 0:03:02]} 10. Be3 {[%clk 0:02:14]}  d6 {[%clk 0:03:02]} 11. O-O-O {[%clk 0:02:06]}  Be6 {[%clk 0:03:02]} 12. f3 {[%clk 0:02:07]}  a6 {[%clk 0:03:01]} 13. Bb6 {[%clk 0:02:06]}  Rhc8 {[%clk 0:02:56]} 14. g4 {[%clk 0:02:04]}  Nd7 {[%clk 0:02:55]} 15. Be3 {[%clk 0:01:56]}  Na5 {[%clk 0:02:48]} 16. h4 {[%clk 0:01:44]}  b5 {[%clk 0:02:43]} 17. Rh2 {[%clk 0:01:13]}  Rc6 {[%clk 0:02:14]} 18. Nd5+ {[%clk 0:00:56]}  Bxd5 {[%clk 0:02:11]} 19. Rxd5 {[%clk 0:00:57]}  Rac8 {[%clk 0:02:00]} 20. Rhd2 {[%clk 0:00:57]}  Nf6 {[%clk 0:01:56]} 21. R5d3 {[%clk 0:00:25]}  Nc4 {[%clk 0:01:54]} 22. g5 {[%clk 0:00:13]}  hxg5 {[%clk 0:01:45]} 23. hxg5 {[%clk 0:00:14]}  Ne8 {[%clk 0:01:34]} 24. Rh2 {[%clk 0:00:14]}  Nc7 {[%clk 0:01:19]} 25. Rh7 {[%clk 0:00:10]}  Ne6 {[%clk 0:01:16]} 0-1


[Site "https://www.chess.com"]

[Event "Titled Tuesday Blitz February 15 Early 2022"]
[White "Agasarov, Benik"]
[Black "Popadic, Dragan"]
[WhiteFideId "13314823"]
[BlackFideId "913650"]
[WhiteElo "2602"]
[BlackElo "2199"]
[Result "1-0"]
[Round "04"]
[TimeControl "180+1"]
[Date "2022.02.15"]
[WhiteClock "0:01:17"]
[BlackClock "0:00:16"]

1. e4 {[%clk 0:02:57]}  c5 {[%clk 0:02:59]} 2. Nf3 {[%clk 0:02:56]}  Nc6 {[%clk 0:02:58]} 3. Bb5 {[%clk 0:02:55]}  e5 {[%clk 0:02:58]} 4. O-O {[%clk 0:02:53]}  d6 {[%clk 0:02:58]} 5. c3 {[%clk 0:02:52]}  Bd7 {[%clk 0:02:58]} 6. d4 {[%clk 0:02:51]}  Qc7 {[%clk 0:02:58]} 7. Na3 {[%clk 0:02:50]}  a6 {[%clk 0:02:57]} 8. Be2 {[%clk 0:02:48]}  b5 {[%clk 0:02:56]} 9. Nc2 {[%clk 0:02:48]}  Nf6 {[%clk 0:02:55]} 10. Bg5 {[%clk 0:02:48]}  Nxe4 {[%clk 0:02:45]} 11. Ne3 {[%clk 0:02:46]}  Nxg5 {[%clk 0:02:41]} 12. Nxg5 {[%clk 0:02:45]}  cxd4 {[%clk 0:02:35]} 13. Nd5 {[%clk 0:02:45]}  Qd8 {[%clk 0:02:31]} 14. Bh5 {[%clk 0:02:39]}  g6 {[%clk 0:02:19]} 15. Nxf7 {[%clk 0:02:27]}  Kxf7 {[%clk 0:02:13]} 16. Qf3+ {[%clk 0:02:27]}  Kg7 {[%clk 0:02:09]} 17. Bg4 {[%clk 0:02:23]}  Bxg4 {[%clk 0:02:03]} 18. Qxg4 {[%clk 0:02:23]}  Be7 {[%clk 0:01:55]} 19. f4 {[%clk 0:02:22]}  Rf8 {[%clk 0:01:38]} 20. f5 {[%clk 0:02:21]}  g5 {[%clk 0:00:58]} 21. h4 {[%clk 0:02:03]}  h6 {[%clk 0:00:57]} 22. hxg5 {[%clk 0:02:02]}  hxg5 {[%clk 0:00:47]} 23. f6+ {[%clk 0:02:01]}  Bxf6 {[%clk 0:00:46]} 24. Rf5 {[%clk 0:01:49]}  Ra7 {[%clk 0:00:33]} 25. Raf1 {[%clk 0:01:48]}  Raf7 {[%clk 0:00:33]} 26. Nxf6 {[%clk 0:01:45]}  Rxf6 {[%clk 0:00:27]} 27. Rxg5+ {[%clk 0:01:37]}  Kh7 {[%clk 0:00:22]} 28. Rxf6 {[%clk 0:01:20]}  Rxf6 {[%clk 0:00:16]} 29. Qh5+ {[%clk 0:01:17]}  Rh6 {[%clk 0:00:16]} 30. Qf7+ {[%clk 0:01:16]}  Kh8 {[%clk 0:00:16]} 31. Qg7# {[%clk 0:01:17]} 1-0


[Site "https://www.chess.com"]

[Event "Titled Tuesday Blitz February 15 Early 2022"]
[White "Agibileg, Uurtsaikh"]
[Black "Erigaisi Arjun"]
[WhiteFideId "4901606"]
[BlackFideId "35009192"]
[WhiteElo "2205"]
[BlackElo "2745"]
[Result "0-1"]
[Round "04"]
[TimeControl "180+1"]
[Date "2022.02.15"]
[WhiteClock "0:00:50"]
[BlackClock "0:01:43"]

1. d4 {[%clk 0:03:00]}  e6 {[%clk 0:03:00]} 2. c4 {[%clk 0:03:00]}  c5 {[%clk 0:03:00]} 3. d5 {[%clk 0:03:00]}  exd5 {[%clk 0:03:01]} 4. cxd5 {[%clk 0:03:01]}  d6 {[%clk 0:03:02]} 5. e4 {[%clk 0:03:00]}  g6 {[%clk 0:03:01]} 6. Bd3 {[%clk 0:02:59]}  Bg7 {[%clk 0:03:02]} 7. h3 {[%clk 0:02:58]}  Ne7 {[%clk 0:03:01]} 8. Nf3 {[%clk 0:02:58]}  O-O {[%clk 0:03:00]} 9. O-O {[%clk 0:02:59]}  Na6 {[%clk 0:03:00]} 10. Nc3 {[%clk 0:02:54]}  Qa5 {[%clk 0:02:56]} 11. Bg5 {[%clk 0:02:52]}  Re8 {[%clk 0:02:53]} 12. Qd2 {[%clk 0:02:52]}  Bd7 {[%clk 0:02:52]} 13. Qf4 {[%clk 0:02:35]}  Qb6 {[%clk 0:02:46]} 14. Rab1 {[%clk 0:02:31]}  f6 {[%clk 0:02:46]} 15. Bh6 {[%clk 0:01:49]}  g5 {[%clk 0:02:46]} 16. Bxg5 {[%clk 0:01:46]}  fxg5 {[%clk 0:02:45]} 17. Nxg5 {[%clk 0:01:47]}  Rf8 {[%clk 0:02:34]} 18. Qh4 {[%clk 0:01:47]}  h6 {[%clk 0:02:33]} 19. e5 {[%clk 0:01:47]}  dxe5 {[%clk 0:02:26]} 20. Nh7 {[%clk 0:01:14]}  Nf5 {[%clk 0:02:13]} 21. Bxf5 {[%clk 0:01:14]}  Rxf5 {[%clk 0:02:14]} 22. Qe4 {[%clk 0:01:01]}  Kxh7 {[%clk 0:02:13]} 23. d6 {[%clk 0:01:01]}  Qc6 {[%clk 0:02:05]} 24. Nd5 {[%clk 0:01:01]}  Nb4 {[%clk 0:01:56]} 25. Rbd1 {[%clk 0:01:00]}  Nxd5 {[%clk 0:01:55]} 26. Rxd5 {[%clk 0:01:01]}  Kh8 {[%clk 0:01:51]} 27. Rfd1 {[%clk 0:00:59]}  Raf8 {[%clk 0:01:50]} 28. f3 {[%clk 0:00:57]}  Be6 {[%clk 0:01:50]} 29. d7 {[%clk 0:00:54]}  Bxd5 {[%clk 0:01:49]} 30. Qxf5 {[%clk 0:00:55]}  Rxf5 {[%clk 0:01:47]} 31. d8=Q+ {[%clk 0:00:55]}  Bg8 {[%clk 0:01:48]} 32. Rd7 {[%clk 0:00:51]}  Rf8 {[%clk 0:01:44]} 33. Qc7 {[%clk 0:00:50]}  Qxc7 {[%clk 0:01:43]} 34. Rxc7 {[%clk 0:00:50]} 0-1


[Site "https://www.chess.com"]

[Event "Titled Tuesday Blitz February 15 Early 2022"]
[White "Alavi, Sayed Javad"]
[Black "Niemann, Hans Moke"]
[WhiteFideId "12500607"]
[BlackFideId "2093596"]
[WhiteElo "2475"]
[BlackElo "2636"]
[Result "0-1"]
[Round "04"]
[TimeControl "180+1"]
[Date "2022.02.15"]
[WhiteClock "0:00:42"]
[BlackClock "0:01:36"]

1. e4 {[%clk 0:02:56]}  c5 {[%clk 0:02:58]} 2. Nf3 {[%clk 0:02:54]}  Nc6 {[%clk 0:02:58]} 3. Bb5 {[%clk 0:02:50]}  e6 {[%clk 0:02:55]} 4. O-O {[%clk 0:02:47]}  Nge7 {[%clk 0:02:56]} 5. Re1 {[%clk 0:02:47]}  a6 {[%clk 0:02:56]} 6. Bxc6 {[%clk 0:02:48]}  Nxc6 {[%clk 0:02:56]} 7. d4 {[%clk 0:02:48]}  cxd4 {[%clk 0:02:55]} 8. Nxd4 {[%clk 0:02:49]}  Be7 {[%clk 0:02:53]} 9. Nxc6 {[%clk 0:02:48]}  dxc6 {[%clk 0:02:52]} 10. Qg4 {[%clk 0:02:49]}  Kf8 {[%clk 0:02:45]} 11. e5 {[%clk 0:02:43]}  h5 {[%clk 0:02:44]} 12. Qe2 {[%clk 0:02:29]}  c5 {[%clk 0:02:41]} 13. Nc3 {[%clk 0:02:17]}  Bd7 {[%clk 0:02:41]} 14. h3 {[%clk 0:01:55]}  Bc6 {[%clk 0:02:40]} 15. Bf4 {[%clk 0:01:55]}  Qd4 {[%clk 0:02:20]} 16. Bh2 {[%clk 0:01:49]}  Rh6 {[%clk 0:02:15]} 17. Rad1 {[%clk 0:01:29]}  Qb4 {[%clk 0:02:15]} 18. Rd3 {[%clk 0:01:20]}  h4 {[%clk 0:02:10]} 19. b3 {[%clk 0:00:59]}  Rg6 {[%clk 0:02:07]} 20. Ne4 {[%clk 0:01:00]}  Kg8 {[%clk 0:01:50]} 21. c4 {[%clk 0:00:56]}  b5 {[%clk 0:01:49]} 22. Rc1 {[%clk 0:00:56]}  bxc4 {[%clk 0:01:48]} 23. Rxc4 {[%clk 0:00:52]}  Qb6 {[%clk 0:01:48]} 24. a4 {[%clk 0:00:51]}  Bd5 {[%clk 0:01:47]} 25. Rcc3 {[%clk 0:00:50]}  c4 {[%clk 0:01:38]} 26. a5 {[%clk 0:00:42]}  cxd3 {[%clk 0:01:36]} 0-1


[Site "https://www.chess.com"]

[Event "Titled Tuesday Blitz February 15 Early 2022"]
[White "Allahverdiyeva, Ayan"]
[Black "Goltsev, Dmitry"]
[WhiteFideId "13412590"]
[BlackFideId "24176710"]
[WhiteElo "1910"]
[BlackElo "2273"]
[Result "0-1"]
[Round "04"]
[TimeControl "180+1"]
[Date "2022.02.15"]
[WhiteClock "0:00:07"]
[BlackClock "0:01:17"]

1. e4 {[%clk 0:03:00]}  e6 {[%clk 0:02:44]} 2. d4 {[%clk 0:03:00]}  d5 {[%clk 0:02:45]} 3. Nc3 {[%clk 0:03:00]}  c5 {[%clk 0:02:43]} 4. dxc5 {[%clk 0:02:58]}  d4 {[%clk 0:02:42]} 5. Bb5+ {[%clk 0:02:55]}  Nc6 {[%clk 0:02:40]} 6. Nce2 {[%clk 0:02:48]}  Bxc5 {[%clk 0:02:39]} 7. Nf4 {[%clk 0:02:48]}  Qa5+ {[%clk 0:02:36]} 8. Bd2 {[%clk 0:02:34]}  Qxb5 {[%clk 0:02:35]} 9. Qg4 {[%clk 0:02:24]}  g6 {[%clk 0:02:24]} 10. Nd3 {[%clk 0:02:15]}  e5 {[%clk 0:02:20]} 11. Qf3 {[%clk 0:02:12]}  Be7 {[%clk 0:02:18]} 12. h4 {[%clk 0:02:11]}  h5 {[%clk 0:02:17]} 13. Nh3 {[%clk 0:02:07]}  Nf6 {[%clk 0:02:16]} 14. Ng5 {[%clk 0:02:06]}  Bg4 {[%clk 0:02:12]} 15. Qg3 {[%clk 0:02:00]}  Nb4 {[%clk 0:02:11]} 16. Bxb4 {[%clk 0:01:14]}  Bxb4+ {[%clk 0:02:12]} 17. Kf1 {[%clk 0:01:14]}  Bd6 {[%clk 0:02:09]} 18. f3 {[%clk 0:00:59]}  Bd7 {[%clk 0:02:04]} 19. Re1 {[%clk 0:00:58]}  Rc8 {[%clk 0:02:03]} 20. Re2 {[%clk 0:00:58]}  Rxc2 {[%clk 0:02:00]} 21. Rxc2 {[%clk 0:00:51]}  Qxd3+ {[%clk 0:01:59]} 22. Re2 {[%clk 0:00:50]}  Bb5 {[%clk 0:01:59]} 23. Qe1 {[%clk 0:00:41]}  O-O {[%clk 0:01:56]} 24. Kf2 {[%clk 0:00:33]}  Bb4 {[%clk 0:01:56]} 25. Qxb4 {[%clk 0:00:21]}  Qxe2+ {[%clk 0:01:55]} 26. Kg3 {[%clk 0:00:22]}  Re8 {[%clk 0:01:41]} 27. Qd6 {[%clk 0:00:20]}  Kg7 {[%clk 0:01:33]} 28. Rc1 {[%clk 0:00:20]}  Bd7 {[%clk 0:01:22]} 29. Rc7 {[%clk 0:00:20]}  Qe1+ {[%clk 0:01:21]} 30. Kh2 {[%clk 0:00:12]}  Qxh4+ {[%clk 0:01:20]} 31. Kg1 {[%clk 0:00:13]}  Qxg5 {[%clk 0:01:19]} 32. Rxb7 {[%clk 0:00:11]}  h4 {[%clk 0:01:19]} 33. Kh2 {[%clk 0:00:08]}  Rc8 {[%clk 0:01:17]} 34. Rxa7 {[%clk 0:00:07]} 0-1


[Site "https://www.chess.com"]